{"text_format":"1","workbook":"xlsx","n_sheets":1,"sheets":["PRESUPUESTO TRAMO 2"],"not_rendered":{"charts":0,"images":3,"macros":1,"external_links":27,"defined_names":321,"comments":0,"pivot_tables":0},"unopened":[],"bounds":{"document_bytes":16777216,"sheet_cells":100000,"rows_first":2000,"rows_last":500,"rows_between":2000,"halvings":0,"cell_chars":16384,"cell_head_chars":4096},"cells_cut":0,"cells_raw":0,"read":"whole","date_system":"1900"}

{"sheet":"PRESUPUESTO TRAMO 2","index":0,"n_rows":76,"n_cols":7,"rows_kept":76,"cut":false,"hidden":false,"merged":[[2,0,2,6],[3,0,3,6],[5,0,5,6],[7,0,7,6],[1,0,1,6]]}
[]
["H. XVII AYUNTAMIENTO DE LA PAZ"]
["DIRECCIÓN GENERAL DE GESTIÓN INTEGRAL DE LA CIUDAD"]
["DIRECCION DE OBRAS PUBLICAS"]
[]
["CATALOGO DE CONCEPTOS"]
[null,null,null,null,null,null,"MARZO 2023"]
["PAVIMENTACION CON CARPETA ASFALTICA DEL CIRCUITO URBANO SUR EN LA CIUDAD DE LA PAZ, B.C.S. (TRAMO 2, CALLE LIC. MANUEL GOMEZ MARIN, DE CALLE HIMNO NACIONAL A CALLE FILEMON CECILIO PINEDA CONTRERAS)"]
[]
["CLAVE","CONCEPTO","UNIDAD","CANTIDAD","PRECIO UNITARIO","PRECIO UNITARIO CON LETRA","IMPORTE"]
[]
[null,"I.-TRABAJOS PRELIMINARES DE OBRA"]
[1,"DESHIERVE Y DESMONTE, POR UNIDAD DE OBRA TERMINADA. INCLUYE: HERRAMIENTA, EQUIPO Y MANO DE OBRA.","HA",2.2000000000000002,null,null,{"$f":"ROUND(D13*E13,2)","v":0}]
[2,"DESPALMES DE CORTES Y DESPLANTE DE TERRAPLENES, DESPERDICIANDO EL MATERIAL QUE SERÁ UTILIZADO PARA ARROPE DE TERRAPLENES, POR UNIDAD DE OBRA TERMINADA.INCLUYE: HERRAMIENTA, EQUIPO Y MANO DE OBRA.","M3",3190.94,null,null,{"$f":"ROUND(D14*E14,2)","v":0}]
[3,"EXCAVACIÓN POR MEDIOS MECANICOS Y/O MANUALES PARA OBRA DE DRENAJE Y SUBDRENAJE, EN ZANJAS, EN TERRENO CON CUALQUIER CLASIFICACION Y PROFUNDIDAD EN PRESENCIA DE AGUA O EN SECO, RETIRO DEL MATERIAL HASTA 4 M DE DISTANCIA HORIZONTAL, EL MATERIAL PRODUCTO DE LA EXCAVACION SE UTILIZARA PARA EL RELLENO DE LA MISMA, EL PRECIO UNITARIO INCLUYE: TRAZO Y NIVELACION, EQUIPO DE BOMBEO PARA ACHIQUE, OBRAS DE PROTECCION DE TALUDES DE ZANJA, TRASPALEO, SEÑALAMIENTO PREVENTIVO, AFINE DE TALUDES Y FONDO DE ZANJA, LIMPIEZA, LA MANO DE OBRA, EQUIPO Y HERRAMIENTA NECESARIOS PARA LA CORRECTA EJECUCIÓN DE LOS TRABAJOS. P.U.O.T.","M3",2000.99,null,null,{"$f":"ROUND(D15*E15,2)","v":0}]
[4,"RELLENO DE LA OBRAS DE PROTECCIÓN Y/O DRENAJE UTILIZANDO MATERIALES COMPACTABLES PROCEDENTES DEL CORTE. INCLUYE: ESCARIFICADO, TENDIDO, INCORPORACION DE HUMEDAD, ACAMELLONADO EN ALAS, AFINE Y COMPACTACION AL 90% DE SU P.V.S.M. DE LA PRUEBA PROCTOR, CARGA Y ACARREO DEL MATERIAL NO UTILIZABLE DENTRO Y FUERA DE LA OBRA HASTA EL LUGAR INDICADO POR SUPERVISION, LA MANO DE OBRA, HERRAMIENTA Y EQUIPO NECESARIO. P.U.O.T.","M3",1104.57,null,null,{"$f":"ROUND(D16*E16,2)","v":0}]
[null,"II.- GUARNICIONES"]
[5,"EXCAVACION A MANO EN TERRENO CON CUALQUIER CLASIFICACION Y PROFUNDIDAD EN PRESENCIA DE AGUA O EN SECO, PARA DESPLANTE DE GUARNICION. INCLUYE: TRAZO, NIVELACION, AFINE DE FONDO Y TALUDES, RETIRO DE MATERIAL HASTA 4 MTS. DE DISTANCIA HORIZONTAL, MATERIALES, MANO DE OBRA, HERRAMIENTA Y EQUIPO NECESARIO","M3",177.89,null,null,{"$f":"ROUND(D18*E18,2)","v":0}]
[6,"GUARNICION DE CONCRETO F´c=150 kg/cm2. R.N. T.M.A. 19 MM. DE 15X20X40 CM DE SECCION TRAPEZOIDAL, CON JUNTAS DE EXPANSION A CADA 4.50 M. CON CARTON ASFALTADO DE 3/8\" DE ESPESOR. INCLUYE: CIMBRA, DESCIMBRADO, ELABORACION, COLADO, VIBRADO Y CURADO DEL CONCRETO,  TRANSPORTE A LA SIGUIENTE POSICION, MATERIALES, MANO DE OBRA Y HERRAMIENTA","ML",2223.66,null,null,{"$f":"ROUND(D19*E19,2)","v":0}]
[7,"CONFINAMIENTO DE GUARNICION CON MATERIAL SELECCIONADO PRODUCTO DE LA EXCAVACION, LIBRE DE BOLEOS DE MAS DE 3\", PRODUCTO DE LA EXCAVACION: INCLUYE MANO DE OBRA Y HERRAMIENTA.","ML",2223.66,null,null,{"$f":"ROUND(D20*E20,2)","v":0}]
[8,"SUMINISTRO Y APLICACIÓN DE PINTURA VINILICA AHULADA MARCA COMEX, EN COLOR BLANCO O AMARILLO (PREVIAMENTE AUTORIZADO) EN TRAMOS RECTOS Y ROJO EN CURVAS, A DOS MANOS EN GUANICIONES DE CONCRETO, INCLUYE: PREPARACION DE LA SUPERFICIE, LIMPIEZA, MATERIALES, MANO DE OBRA Y HERRAMIENTA.","ML",2223.66,null,null,{"$f":"ROUND(D21*E21,2)","v":0}]
[9,"DEMOLICION DE GUARNICIONES DE CONCRETO EXISTENTES POR ENCONTRARSE EN MALAS CONDICIONES Y/O NO DAR LOS NIVELES DE PROYECTO. INCLUYE: CORTE CON CORTADORA DE DISCO, CARGA Y RETIRO DE ESCOMBRO FUERA DE LA OBRA HASTA EL LUGAR INDICADO POR LA SUPERVISION, LA MANO DE OBRA, HERRAMIENTA Y EQUIPO NECESARIO.","ML",60,null,null,{"$f":"ROUND(D22*E22,2)","v":0}]
[null,"III.- CONSTRUCCION DE BANQUETAS"]
[10,"CONSTRUCCION DE BANQUETAS DE 8 CM DE ESPESOR ARMADA CON MALLA ELECTROSOLDADA 6x6-10/10. EN ZONA PEATONAL, ACABADO LAVADO, EN LOSAS DE SECCION VARIABLE, JUNTAS FRIAS. EL CONCRETO SERA F´c=150 KG/CM2. T.M.A. 3/4\". REV. DE 8 A 10 CM PREMEZCLADO ELABORADO EN PLANTA, INCLUYE: SUMINISTRO, COLADO, EXTENDIDO, VIBRADO Y ACARREOS DEL CONCRETO, SUMINISTRO Y APLICACIÓN DE CURACRETO EN COLOR BLANCO MARCA PASA O SIKA, CON EL EQUIPO ADECUADO, Y EN LA PROPORCION INDICADA POR EL FABRICANTE, CIMBRA EN FRONTERAS, NIVELACION, AFINE, COMPACTACION AL 95 % EN UN ESPESOR DE 15 CM Y  PREPARACION DE LA SUPERFICIE DEL TERRENO, ACARREOS DE LOS MATERIALES DENTRO DE LA OBRA, LIMPIEZA GENERAL ANTES Y UNA VEZ CONCLUIDOS LOS TRABAJOS, CARGA Y   ACARREOS DE LOS MATERIALES NO UTILIZABLES HASTA EL LUGAR INDICADO POR SUPERVISION, TRAZO Y NIVELACION, MATERIALES, MANO DE OBRA,  HERRAMIENTA Y EQUIPO NECESARIO. P.U.O.T. NOTA: EL LICITANTE DEBERA DE CONSIDERAR LAS PRUEBAS DE LABORATORIO RESPECTIVAS EFECTUADAS POR UN LABORATORIO EXTERNO AL MISMO Y PRESENTARSE AL MOMENTO DE REALIZAR EL TRAMITE PARA EL PAGO DE ESTIMACIONES","M2",120,null,null,{"$f":"ROUND(D24*E24,2)","v":0}]
[11,"FABRICACION DE RAMPAS PARA EL ACCESO DE PERSONAS CON CAPACIDADES DIFERENTES, DE CONCRETO DE 8 CM DE ESPESOR, Y CON UNA PENDIENTE MAXIMA DEL 8%, ACABADO PULIDO Y RAYADO TRANSVERSAL CON PEINE METALICO PARA DAR ACABADO ANTIDERRAPANTE, EN LOSAS DE 1.20 M. DE ANCHO COMO MINIMO. CON BORDES LATERALES DE 10 CM DE ALTURA Y 10 CM DE ANCHO DE CONCRETO, EN EL DESARROLLO LONGITUDINAL DE LA RAMPA, ACABADO EN ARISTAS CON VOLTEADOR. EL CONCRETO SERA F´c=150 KG/CM2. T.M.A. 3/4\". REV. DE 8 A 10 CM. PREMEZCLADO ELABORADO EN PLANTA. INCLUYE: SUMINISTRO, COLADO, EXTENDIDO, VIBRADO Y ACARREOS DEL CONCRETO, SUMINISTRO Y APLICACION DE CURACRETO EN COLOR BLANCO MARCA PASA O SIKA, CON EL EQUIPO ADECUADO, Y EN LA PROPORCION INDICADA POR EL FABRICANTE, CIMBRA EN FRONTERAS, NIVELACION, AFINE, COMPACTACION AL 95 % EN UN ESPESOR DE 15 CM Y PREPARACION DE LA SUPERFICIE DEL TERRENO, ACARREOS DE LOS MATERIALES DENTRO DE LA OBRA, LIMPIEZA GENERAL ANTES Y UNA VEZ CONCLUIDOS LOS TRABAJOS, CARGA Y ACARREOS DE LOS MATERIALES NO UTILIZABLES HASTA EL LUGAR INDICADO POR SUPERVISION, TRAZO Y NIVELACION, MATERIALES, MANO DE OBRA, HERRAMIENTA Y EQUIPO NECESARIO. U.O.T. (NOTA: EL LICITANTE DEBERA DE CONSIDERAR LAS PRUEBAS DE LABORATORIO RESPECTIVAS, EFECTUADAS POR UN LABORATORIO EXTERNO AL MISMO Y PRESENTARSE AL MOMENTO DE REALIZAR EL TRAMITE PARA EL PAGO DE ESTIMACIONES)","M2",10,null,null,{"$f":"ROUND(D25*E25,2)","v":0}]
[12,"EXCAVACION EN CORTE EN MATERIAL INVESTIGADO EN OBRA, EN AREAS DE BANQUETAS, RAMPAS Y ADYACENTES, PARA DAR NIVELES DE PROYECTO. INCLUYE: TRAZO Y NIVELACION, CARGA, ACARREOS DENTRO Y FUERA DE LA OBRA DEL MATERIAL NO UTILIZABLE HASTA EL LUGAR INDICADO POR SUPERVISION, LA MANO DE OBRA, HERRAMIENTA Y EQUIPO NECESARIO","M3",30,null,null,{"$f":"ROUND(D26*E26,2)","v":0}]
[13,"RELLENO COMPACTADO CON EQUIPO MECANICO CON MATERIAL SELECCIONADO PRODUCTO DE BANCO, LIBRE DE BOLEO MAYOR DE 3\", EN CAPAS DE 20 CM, COMPACTADO AL 90% PROCTOR, PARA DESPLANTE DE BANQUETAS Y GUARNICIONES ADYACENTES, PARA DAR NIVELES DE PROYECTO, SEGUN INDICACIONES DE SUPERVISION. INCLUYE: CRIBADO DEL MATERIAL, ACARREOS DENTRO DE LA OBRA, INCORPORACION DE HUMEDAD, MANO DE OBRA, HERRAMIENTA Y EQUIPO NECESARIO. ","M3",12,null,null,{"$f":"ROUND(D27*E27,2)","v":0}]
[14,"RELLENO COMPACTADO CON EQUIPO MECANICO CON MATERIAL SELECCIONADO PRODUCTO DE EXCAVACION EN CORTE, LIBRE DE BOLEO MAYOR DE 3\", EN CAPAS DE 20 CM, COMPACTADO AL 85% PROCTOR, EN AREAS DE BANQUETAS Y ADYACENTES PARA DAR NIVELES DE PROYECTO, SEGÚN INDICACIONES DE SUPERVISION. INCLUYE: CRIBADO DE MATERIAL, CARGA Y ACARREOS DENTRO DE LA OBRA, INCORPORACION DE HUMEDAD, MANO DE OBRA, HERRAMIENTA Y EQUIPO NECESARIO","M3",24,null,null,{"$f":"ROUND(D28*E28,2)","v":0}]
[15,"DEMOLICION DE BANQUETAS Y/O RAMPAS EN COCHERAS DE CONCRETO (CON O SIN ARMADO)  EXISTENTES POR ENCONTRARSE EN MALAS CONDICIONES Y/O NO DAR LOS NIVELES DE PROYECTO . INCLUYE: CORTE CON CORTADORA DE DISCO, LIMPIEZA, CARGA Y RETIRO DE ESCOMBRO FUERA DE LA OBRA HASTA EL LUGAR INDICADO POR LA SUPERVISION, LA MANO DE OBRA, HERRAMIENTA Y EQUIPO NECESARIO.","M2",72.260000000000005,null,null,{"$f":"ROUND(D29*E29,2)","v":0}]
[null,"III.- TERRACERIAS"]
[16,"TRAZO Y NIVELACION DE TERRACERIAS, AL AMPARO DE ESTE CONCEPTO EL CONTRATISTA DE ACUERDO A LOS PLANOS DE PROYECTO QUE LE SEAN SUMINISTRADOS, HARA EL TRAZO Y NIVELACION CON EQUIPO DE TOPOGRAFIA DE LOS EJES, LIMITES Y DETALLES CONSTRUCTIVOS DE LOS TRABAJOS. DEBERA COLOCAR REFERENCIAS FIJAS, FUERA DE LAS AREAS DE LOS TRABAJOS PARA ASEGURAR LOS ALINEAMIENTOS Y NIVELES. INCLUYE: LOS MATERIALES, MANO DE OBRA, HERRAMIENTA Y EQUIPO NECESARIO.","M2",11964.66,null,null,{"$f":"ROUND(D31*E31,2)","v":0}]
[17,"EXCAVACION Y/O CORTE POR MEDIOS MECANICOS EN TERRENO CON CUALQUIER CLASIFICACION EN TERRENO NATURAL, EL MATERIAL PRODUCTO DEL CORTE SE UTILIZARA EN LA FORMACION DE TERRAPLENES U ARROPES, CON ESPESOR VARIABLE PARA DAR EL NIVEL DEL TERRAPLEN. INCLUYE: ESCARIFICADO, ACAMELLONADO DEL MATERIAL PARA SER RETIRADO, Y EL EQUIPO NECESARIO.","M3",4126.74,null,null,{"$f":"ROUND(D32*E32,2)","v":0}]
[18,"EXCAVACION Y/O CORTE POR MEDIOS MECANICOS EN TERRENO CON CUALQUIER CLASIFICACION EN TERRENO NATURAL, EL MATERIAL PRODUCTO DEL CORTE SE RETIRA A UN BANCO DE TIRO PROPUESTO POR EL CONTRATISTA A SATISFACCIÓN DE LA DEPENDENCIA. INCLUYE: ESCARIFICADO, ACAMELLONADO DEL MATERIAL PARA SER RETIRADO, Y EL EQUIPO NECESARIO.","M3",4419.95,null,null,{"$f":"ROUND(D33*E33,2)","v":0}]
[19,"CONSTRUCCION Y FORMACION DE TERRAPLENES UTILIZANDO MATERIALES COMPACTABLES PROCEDENTES DEL CORTE. INCLUYE: ESCARIFICADO, TENDIDO, INCORPORACION DE HUMEDAD, ACAMELLONADO EN ALAS, AFINE Y COMPACTACION AL 90% DE SU P.V.S.M. DE LA PRUEBA PROCTOR, CARGA Y ACARREO DEL MATERIAL NO UTILIZABLE DENTRO Y FUERA DE LA OBRA HASTA EL LUGAR INDICADO POR SUPERVISION, LA MANO DE OBRA, HERRAMIENTA Y EQUIPO NECESARIO.","M3",101.01,null,null,{"$f":"ROUND(D34*E34,2)","v":0}]
[20,"CONSTRUCCION Y FORMACION DE TERRAPLENES UTILIZANDO MATERIALES COMPACTABLES PROCEDENTES DEL CORTE. INCLUYE: ESCARIFICADO, TENDIDO, INCORPORACION DE HUMEDAD, ACAMELLONADO EN ALAS, AFINE Y COMPACTACION AL 100% DE SU P.V.S.M. DE LA PRUEBA PROCTOR, CARGA Y ACARREO DEL MATERIAL NO UTILIZABLE DENTRO Y FUERA DE LA OBRA HASTA EL LUGAR INDICADO POR SUPERVISION, LA MANO DE OBRA, HERRAMIENTA Y EQUIPO NECESARIO.","M3",4126.74,null,null,{"$f":"ROUND(D35*E35,2)","v":0}]
[21,"CONSTRUCCION Y FORMACION DE CAPA ROMPEDORA DE CAPILARIDAD POR CAPAS DE 20 CM DE ESPESOR, FORMADO  DE FRAGMENTOS DE ROCA Y GRAVA CON TAMAÑOS DE PARTICULAS DE 1\" A 8\" UTILIZANDO MATERIALES NO COMPACTABLES CONFORME A LA GRANULOMETRÍA INDICADA, PROCEDENTES DE BANCOS QUE CIUMPLAN CON LAS ESPECIFICACIONES VIGENTES, AUTORIZADO POR SUPERVISION, EN EL DESPLANTE DEL TERRAPLÉN. INCLUYE: TENDIDO, AFINE Y COMPACTACION AL 100% DE SU P.V.S.M. DE LA PRUEBA PROCTOR, CARGA Y ACARREO DEL MATERIAL NO UTILIZABLE DENTRO Y FUERA DE LA OBRA HASTA EL LUGAR INDICADO POR SUPERVISION, LA MANO DE OBRA, HERRAMIENTA Y EQUIPO NECESARIO.","M3",100,null,null,{"$f":"ROUND(D36*E36,2)","v":0}]
[null,"IV.- PAVIMENTACIÓN"]
[22,"TRAZO Y NIVELACION PARA PAVIMENTACION. AL AMPARO DE ESTE CONCEPTO EL CONTRATISTA DE ACUERDO A LOS PLANOS DE PROYECTO QUE LE SEAN SUMINISTRADOS, HARA EL TRAZO Y NIVELACION CON EQUIPO DE TOPOGRAFIA DE LOS EJES, LIMITES Y DETALLES CONSTRUCTIVOS DE LOS TRABAJOS. DEBERA COLOCAR REFERENCIAS FIJAS, FUERA DE LAS AREAS DE LOS TRABAJOS PARA ASEGURAR LOS ALINEAMIENTOS Y NIVELES. INCLUYE: LOS MATERIALES, MANO DE OBRA, HERRAMIENTA Y EQUIPO NECESARIO.","M2",11964.66,null,null,{"$f":"ROUND(D38*E38,2)","v":0}]
[23,"RECORTE DE CARPETA ASFALTICA EXISTENTE EN MAL ESTADO DE HASTA 5 CM. DE ESPESOR COMPACTOS APROXIMADO, POR MEDIO DE UNA CORTADORA. INCLUYE: BARRIDO Y LIMPIEZA PREVIA (RETIRO DE LOS MATERIALES FUERA DE LA OBRA), DISGREGADO DE LA CARPETA,  ACAMELLONADO, CARGA Y ACARREO DEL MATERIAL NO UTILIZABLE FUERA DE LA OBRA HASTA DONDE LO INDIQUE LA SUPERVISION PARA SU ALMACENAJE Y POSTERIOR REUTILIZACION, LA MANO DE OBRA, HERRAMIENTA Y EQUIPO NECESARIO .(SE ACEPTARA UNICAMENTE EL USO DE MAQUINA RECUPERADORA).","ML",28,null,null,{"$f":"ROUND(D39*E39,2)","v":0}]
[24,"CONSTRUCCION  DE  BASE  HIDRAULICA  CON  MATERIAL PETREO A TAMAÑO MAXIMO DE 1 1/2\", PARCIALMENTE TRITURADO PROVENIENTE DE BANCO. INCLUYE: ACARREOS, INCORPORACION DE HUMEDAD, HOMOGENIZACION, TENDIDO, AFINE Y COMPACTACION AL 100% DE SU PVSM, ESPESOR DE 20 CM. COMPACTOS, LIMPIEZA PREVIA DEL AREA, MANO DE OBRA, MATERIALES, HERRAMIENTA, EQUIPO NECESARIO.","M2",8988.24,null,null,{"$f":"ROUND(D40*E40,2)","v":0}]
[25,"CONSTRUCCION  DE  SUBBASE  HIDRAULICA  CON  MATERIAL PETREO A TAMAÑO MAXIMO DE 1 1/2\", PARCIALMENTE TRITURADO PROVENIENTE DE BANCO. INCLUYE: ACARREOS, INCORPORACION DE HUMEDAD, HOMOGENIZACION, TENDIDO, AFINE Y COMPACTACION AL 100% DE SU PVSM, ESPESOR DE 20 CM. COMPACTOS, LIMPIEZA PREVIA DEL AREA, MANO DE OBRA, MATERIALES, HERRAMIENTA, EQUIPO NECESARIO.","M2",2808,null,null,{"$f":"ROUND(D41*E41,2)","v":0}]
[26,"RIEGO DE IMPREGNACION CON ASFALTO FM-1 Y/O FR-3 REBAJADO AL 8% EN VOLUMEN CON DIESEL, EN PROPORCIÓN DE 1.5 LTS/M² (NO SE ACEPTARA EL USO DE EMULSIONES). INCLUYE: BARRIDO Y LIMPIEZA PREVIA DE LA SUPERFICIE (RETIRO FUERA DE LA OBRA DE LOS MATERIALES PRODUCTO DE LA MISMA), CARGA, CALENTADO, FLETE, ACARREOS Y APLICACIÓN DEL ASFALTO, EN CASO DE SER NECESARIO SE REALIZARA UN ARENEO EN LAS ZONAS DONDE NO PENETRE LA IMPREGNACIÓN, EN UN TIEMPO NO MENOR DE 24 HRS., DESPUÉS DEL RIEGO, LOS MATERIALES, MANO DE OBRA, HERRAMIENTA, EQUIPO NECESARIO. (INCLUYE EL COSTO DEL ASFALTO). P.U.O.T.\nNOTA: AL EFECTUAR ESTE CONCEPTO, DEBERA CUIDARSE NO MANCHAR LAS GUARNICIONES Y BANQUETAS, EN CUYO CASO SE TENDRAN QUE LIMPIAR SEGUN INDICACIONES DE LA SUPERVISION DE OBRA.","M2",11964.66,null,null,{"$f":"ROUND(D42*E42,2)","v":0}]
[27,"RIEGO DE LIGA PARA CARPETA CON ASFALTO FR-3 EN PROPORCION DE 0.5 LTS/M². INCLUYE: BARRIDO, LIMPIEZA Y RETIRO FUERA DE LA OBRA DE LOS MATERIALES PRODUCTO DE LA LIMPIEZA HASTA EL LUGAR INDICADO, CARGA, CALENTADO, ACARREOS, APLICACION, DEL ASFALTO, MANO DE OBRA, HERRAMIENTA, EQUIPO. (INCLUYE EL COSTO DEL ASFALTO). P.U.O.T.\n(NOTA: AL EFECTUAR ESTE CONCEPTO, DEBERA CUIDARSE NO MANCHAR LAS GUARNICIONES Y BANQUETAS, EN CUYO CASO SE TENDRAN QUE LIMPIAR SEGUN INDICACIONES DE LA SUPERVISION DE OBRA.","M2",8988.24,null,null,{"$f":"ROUND(D43*E43,2)","v":0}]
[28,"SUMINISTRO Y COLOCACION DE CONCRETO HIDRAULICO PREMEZCLADO MR=45 KG/CM2  DE FRAGUADO A 28 DÍAS, AUTOCURABLE HIDRATIUM O SIMILAR, T.M.A. DE 1 1/2\". REV. DE 8 (± 2.0 CM.), MUESTREO EN OBRA, CEMENTO TIPO CPC40. SEGÚN NORMA NMX-C-414, AGREGADO GRUESO TRITURADO Y ARENA DE RIO. ELABORADO Y DOSIFICADO POR PESO EN PLANTA, EXTENDIDO EN LOSAS PARA PAVIMENTACIÓN CON ESPESOR DE 20 CM, TENDIDO Y NIVELADO CON PAVIMENTADORA DE CONCRETO (QUE EN GENERAL CUMPLA CON LO ESTABLECIDO EN LA CLAUSULA E EQUIPO, DE LA NORMA N.CTR.CAR.1.04.009/06, LIBRO CTR CONSTRUCCION, TEMA CAR CARRETERAS, PARTE 1 ACTIVIDADES DE OBRA, TITULO 04 PAVIMENTOS, CAPITULO 009 CARPETAS DE CONCRETO HIDRAULICO, DE LA NORMATIVA PARA LA INFRAESTRUCTURA DEL TRANSPORTE DE LA SECRETARÍA DE COMUNICACIONES Y TRANSPORTES), RODILLOS VIBRATORIOS, SEGUN SEA EL CASO, Y VIBRADO, AVIONADO CON CHECK ROD Y BULL FLOAT PARA UNA CORRECTA PLANICIDAD ACABADO CON PEINE METALICO DE CERDAS METALICAS ESPACIADOS @ 3/4\" PARA DAR TEXTURA EN ACABADO RAYADO TRANSVERSAL, COLADO POR FRANJAS CON UNA RELACIÓN LARGO ANCHO NO MAYOR DE 1.25; PLASTICO CAL. 600 MICRAS DESPUES DEL ACABADO, PARA REFORZAR CURADO CORRECTO DE LAS LOSAS. INCLUYE TRAZO, NIVELACIÓN, SEÑALAMIENTO, BARRIDO Y PREPARACIÓN DE LA SUPERFICIE, CIMBRADO Y DESCIMBRADO, VIBRADO, ELABORACIÓN, MEZCLADO Y ACARREO DEL CONCRETO HASTA EL LUGAR DE LA OBRA CON UN MÍNIMO DE CAMIONES REVOLVEDORES, PARA MANTENER UNA FRECUENCIA MINIMA DE 15 MINUTOS ENTRE UNIDADES DE ACUERDO AL CICLO REQUERIDO (PARA EVITAR LA FORMACIÓN DE JUNTAS FRÍAS DEL CONCRETO), PASA JUNTAS DE VARILLA LISA DE 1\" GRADO 60, DE 46 CM DE LARGO @ 30 CM, EN FORMA TRANSVERSAL Y COLOCADAS A CADA 4.50 M, (CON UN  EXTREMO ENGRASADO, FUNDA O PINTURA ANTIADHERENTE); CON CANASTILLA METÁLICA, AHOGADAS EN EL CONCRETO EN EL ESPESOR MEDIO; LA JUNTA LONGITUDINAL SERÁ A BASE DE AMARRES CON VARILLA CORRUGADA DEL No. 4 FY= 4,200 KG/CM2 DE 50 CM DE LARGO @ 35 CM CORTE DE JUNTAS TRANSVERSALES CON CORTADORA DE DISCO DE DIAMANTE A UNA PROFUNDIDAD DE 1/3 DEL PERALTE DE LA LOSA, MODULACIÓN DE TABLEROS SEGUN PROYECTO, PARA PREVENIR AGRIETAMIENTOS POR TEMPERATURA,  LIMPIEZA CON AIRE A PRESIÓN, Y  RELLENO EN JUNTA CONSTRUCTIVA CON CINTILLA DE POLIETILENO DE 3/8\" (BACKER ROD) , Y SELLADOR AUTONIVELANTE A BASE DE  POLIURETANO-ASFALTO TIPO SONOMERIC 1 Ó SIMILAR. INCLUYE: MATERIALES, MANO DE OBRA, HERRAMIENTA Y EQUIPO NECESARIO, CAPACIDAD INSTALADA PARA PRODUCIR Y SUMINISTRAR CONCRETO PREMEZCLADO CONFORME A PROGRAMA DE OBRA. (COLADOS NOCTURNOS).\nNOTA: EL LICITANTE DEBERA DE CONSIDERAR LAS PRUEBAS DE LABORATORIO RESPECTIVAS, EFECTUADAS POR UN LABORATORIO EXTERNO AL MISMO Y PRESENTARSE AL MOMENTO DE REALIZAR EL TRAMITE PARA EL PAGO DE ESTIMACIONES), INCLUYE: LIMPIEZA GENERAL (FINA Y GRUESA). VER ESPECIFICACIONES PARTICULARES Y APEGARSE A LAS NORMAS DE LA SCT. VIGENTES.","M2",2976.42,null,null,{"$f":"ROUND(D44*E44,2)","v":0}]
[29,"CONSTRUCCION DE CARPETA DE CONCRETO ASFALTICO DE 6 CM DE ESPESOR COMPACTOS, EN CALIENTE, ELABORADA EN PLANTA CON MATERIAL PETREO Y CEMENTO ASFALTICO AC-20 EN PROPORCION DE 118-120 KG/M3. INCLUYE: ADITIVO ADIFLEX \"EN\" AL 2% EN VOLUMEN, MEZCLA HOMOGENIZADA, TENDIDO, AFINE Y COMPACTADO AL 95%, ACARREOS, MATERIALES NECESARIOS, DESPERDICIOS, MANO DE OBRA, HERRAMIENTA Y EQUIPO NECESARIO.\n(NOTA: AL EFECTUAR ESTE CONCEPTO, DEBERA CUIDARSE NO MANCHAR LAS GUARNICIONES Y BANQUETAS, EN CUYO CASO SE TENDRAN QUE LIMPIAR SEGUN INDICACIONES DE LA SUPERVISION DE OBRA.","M2",8988.24,null,null,{"$f":"ROUND(D45*E45,2)","v":0}]
[30,"LIMPIEZA DE OBRA TERMINADA. INCLUYE: ACOPIO, CARGA, ACARREO DE MATERIALES Y ESCOMBRO PRODUCTO DE LOS TRABAJOS EJECUTADOS FUERA DE LA OBRA, HASTA EL SITIO AUTORIZADO, SEGUN LO INDIQUE LA SUPERVISION, LA MANO DE OBRA, HERRAMIENTA Y EQUIPO NECESARIO.","M2",11964.66,null,null,{"$f":"ROUND(D46*E46,2)","v":0}]
[null,"V.-OBRAS DE PROTECCION Y DRENAJE"]
[31,"SUMINISTRO Y COLOCACION DE CONCRETO HIDRAULICO F´c= 250 KG/CM², T.M.A. 3/4\". CON UN REVENIMIENTO DE 10-12 CM., PARA CADENA Y CASTILLOS. INCLUYE: CIMBRA CON MADERA DE PINO ACABADO COMUN, COLADO, VIBRADO, AFINE, CURADO. FLETE Y ACARREOS HASTA LA OBRA, ARMADO DE MURO POR MEDIOS MANUALES EN SECCION DE ACUERDO A PROYECTO, AMARRES, ACARREOS HASTA EL LUGAR DE COLOCACION, SUMINISTRO, CARGA, ACARREOS, TRAZO, NIVELACION, EXCAVACION EN TERRENO INVESTIGADO EN OBRA, RELLENO COMPACTADO AL 95% MINIMO, CON MATERIAL SELECCCIONADO PRODUCTO DE LA EXCAVACION, LA MANO DE OBRA, HERRAMIENTA Y EQUIPO NECESARIO. P.U.O.T. (DETALLES EN PLANO).","M3",59.74,null,null,{"$f":"ROUND(D48*E48,2)","v":0}]
[32,"SUMINISTRO Y COLOCACION DE CONCRETO HIDRAULICO F´c= 100 KG/CM², T.M.A. 3/4\". CON UN REVENIMIENTO DE 14-16 CM., PARA PLANTILLA. INCLUYE: CIMBRA CON MADERA DE PINO ACABADO COMUN, COLADO, AFINE, FLETE Y ACARREOS HASTA LA OBRA, ACARREOS HASTA EL LUGAR DE COLOCACION, SUMINISTRO, CARGA, ACARREOS, TRAZO, NIVELACIÓN, CON MATERIAL SELECCCIONADO PRODUCTO DE LA EXCAVACION, LA MANO DE OBRA, HERRAMIENTA Y EQUIPO NECESARIO. P.U.O.T. (DETALLES EN PLANO).","M3",17.829999999999998,null,null,{"$f":"ROUND(D49*E49,2)","v":0}]
[33,"SUMINISTRO Y COLOCACION DE ACERO DE REFUERZO FY= 4,200 KG/CM2. INCLUYE: ALAMBRE PARA AMARRES, FLETE Y ACARREOS HASTA LA OBRA, ACARREOS HASTA EL LUGAR DE COLOCACION, SUMINISTRO, CARGA, ACARREOS, TRAZO, NIVELACION, LA MANO DE OBRA, HERRAMIENTA Y EQUIPO NECESARIO. P.U.O.T.","KG",2793.48,null,null,{"$f":"ROUND(D50*E50,2)","v":0}]
[34,"CONSTRUCCIÓN DE MURO DE MAMPOSTERÍA DE PIEDRA BRAZA DE TERCERA CLASE JUNTEADO CON MORTERO CEMENTO EN PROPORCIÓN 1:3, PARA PROTECCIÓN DE LA GAZA DE INCORPORACIÓNINCLUYE:  FLETE Y ACARREOS HASTA LA OBRA, ACARREOS HASTA EL LUGAR DE COLOCACION, CARGA, ACARREOS, TRAZO, NIVELACION, LA MANO DE OBRA, HERRAMIENTA Y EQUIPO NECESARIO. P.U.O.T.","M3",393.87,null,null,{"$f":"ROUND(D51*E51,2)","v":0}]
[35,"SUMINISTRO Y COLOCACION DE GAVION DE (2.00x1.00x1.00 MTS.). CUADRADO DE ALAMBRE GALVANIZADO SIN RECUBRIMIENTO EN MALLA METALICA DE TRIPLE TORSION DE ALAMBRE DE ACERO BAJO CARBON GALVANIZADO CLASE III. CALIBRE 12. REFORZADO EN SUS ARISTAS CON ALAMBRE GALV. E ACERO BAJO CARBON  CAL.10,  ESCUADRIA 8x10 CMS. INCLUYE ALAMBRE PARA AMARRES, FLETE Y ACARREOS HASTA LA OBRA, ARMADO DE GAVION POR MEDIOS MANUALES EN SECCION DE ACUERDO A PROYECTO, AMARRES, ACARREOS HASTA EL LUGAR DE COLOCACION, SUMINISTRO, CARGA, ACARREOS, COLOCACION Y ACOMODO A MANO DE PIEDRA DE CANTO RODADO O DE EXPLOTACION DE LA REGION, SANA Y NO INTEMPERIZABLE (CON UNA GRANULOMETRIA DE 4 A 8 PULGADAS) PARA EL LLENADO DE GAVIONES, TRAZO, NIVELACION, EXCAVACION EN TERRENO INVESTIGADO EN OBRA, RELLENO COMPACTADO AL 95% MINIMO, CON MATERIAL SELECCCIONADO PRODUCTO DE LA EXCAVACION, LA MANO DE OBRA, HERRAMIENTA Y EQUIPO NECESARIO. P.U.O.T. (DETALLES EN PLANO).","M3",420,null,null,{"$f":"ROUND(D52*E52,2)","v":0}]
[36,"SUMINISTRO Y COLOCACION DE MALLA ELECTROSOLDADA EN ZAMPEADO Y DENTELLÓN 6-6/4-4. INCLUYE: ALAMBRE PARA AMARRES, FLETE Y ACARREOS HASTA LA OBRA, ACARREOS HASTA EL LUGAR DE COLOCACION, SUMINISTRO, CARGA, ACARREOS, TRAZO, NIVELACION, LA MANO DE OBRA, HERRAMIENTA Y EQUIPO NECESARIO. P.U.O.T.","M2",200,null,null,{"$f":"ROUND(D53*E53,2)","v":0}]
[37,"CONSTRUCCIÓN DE ZAMPEADO DE DESCARGA Y DENTELLÓN DE CONCRETO HIDRAULICO F´c= 150 KG/CM² HECHO EN OBRA, T.M.A. 3/4\". DE 10 CM DE ESPESOR CON UN REVENIMIENTO DE 12-15 CM., PARA OBRA DE DRENAJE MENOR. INCLUYE: CIMBRA CON MADERA DE PINO ACABADO COMUN, COLADO, VIBRADO, AFINE, CURADO. FLETE Y ACARREOS HASTA LA OBRA, EN SECCION DE ACUERDO A PROYECTO, AMARRES, ACARREOS HASTA EL LUGAR DE COLOCACION, SUMINISTRO, CARGA, ACARREOS, TRAZO, NIVELACION, EXCAVACION EN TERRENO INVESTIGADO EN OBRA, RELLENO COMPACTADO AL 95% MINIMO, CON MATERIAL SELECCCIONADO PRODUCTO DE LA EXCAVACION, LA MANO DE OBRA, HERRAMIENTA Y EQUIPO NECESARIO. P.U.O.T. (DETALLES EN PLANO).","M3",12,null,null,{"$f":"ROUND(D54*E54,2)","v":0}]
[null,"VI.- SEÑALAMIENTO VERTICAL Y HORIZONTAL"]
[38,"SUMINISTRO Y COLOCACION DE SEÑAL OBRAS Y DISPOSITIVOS DIVERSOS OD-5 INDICADOR DE OBSTACULOS, CON UN TABLERO DE 122 CM x 30 CM, SEGUN NORMAS DE LA DIRECCION DE TRANSITO MUNICIPAL, SIN CEJA FABRICADA EN LAMINA GALVANIZADA CAL.16 CON POSTE CUADRADO DE 1 1/2\" x 1 1/2\" CAL.14  SUJETA CON TORNILLOS 3/8\" x 3\" Y TUERCAS CON GUASA DE PRESION, LAS IMPRESIONES DE LETRAS Y SIMBOLOS SERAN EN SCOTCHLITE GRADO INGENIERIA EN ALTA INTENSIDAD, AHOGADA EN CONCRETO F´c= 150 KG/CM2. LA PARTE POSTERIOR DE COLOR GRIS MATE, LA DISTANCIA Y ALTURA DE LA SEÑAL SERA LO INDICADO EN EL MANUAL DE DISPOSITIVO PARA EL CONTROL DEL TRANSITO EN CALLES Y CARRETERAS INCLUYE: MATERIALES, MANO DE OBRA Y HERRAMIENTA. P.U.O.T.","PZA",5,null,null,{"$f":"ROUND(D56*E56,2)","v":0}]
[39,"SUMINISTRO Y COLOCACION DE SEÑAL OBRAS Y DISPOSITIVOS DIVERSOS OD-5 INDICADOR DE OBSTACULOS, CON UN TABLERO DE 122 CM x 60 CM, SEGUN NORMAS DE LA DIRECCION DE TRANSITO MUNICIPAL, SIN CEJA FABRICADA EN LAMINA GALVANIZADA CAL.16 CON POSTE CUADRADO DE 1 1/2\" x 1 1/2\" CAL.14  SUJETA CON TORNILLOS 3/8\" x 3\" Y TUERCAS CON GUASA DE PRESION, LAS IMPRESIONES DE LETRAS Y SIMBOLOS SERAN EN SCOTCHLITE GRADO INGENIERIA EN ALTA INTENSIDAD, AHOGADA EN CONCRETO F´c= 150 KG/CM2. LA PARTE POSTERIOR DE COLOR GRIS MATE, LA DISTANCIA Y ALTURA DE LA SEÑAL SERA LO INDICADO EN EL MANUAL DE DISPOSITIVO PARA EL CONTROL DEL TRANSITO EN CALLES Y CARRETERAS INCLUYE: MATERIALES, MANO DE OBRA Y HERRAMIENTA. P.U.O.T.","PZA",2,null,null,{"$f":"ROUND(D57*E57,2)","v":0}]
[40,"SUMINISTRO Y APLICACION DE PINTURA EN LA ORILLA DERECHA  CONTINUA DE COLOR BLANCO DE 10 CM DE ANCHO PREVIAMENTE AUTORIZADO POR SUPERVISION CON PINTURA TERMOPLÁSTICA PARA TRAFICO MARCA SEMEX, Y SE LE APLICARA UN REFLEJANTE CON MICROESFERA, Y SU APLICACION SERA SEGUN LO INDICADO EN EL MANUAL DE DISPOSITIVOS PARA EL CONTROL DEL TRANSITO EN CALLES Y CARRETERAS, INCLUYE: LIMPIEZA POR ASPERSION PARA ELIMINAR LA PRESENCIA DE POLVO, GRASA, ACEITE Y CUALQUIER MATERIAL, MATERIALES, MANO DE OBRA, HERRAMIENTA Y EQUIPO NECESARIO. P.U.O.T. ","ML",1924,null,null,{"$f":"ROUND(D58*E58,2)","v":0}]
[41,"SUMINISTRO Y APLICACION DE PINTURA EN LA ORILLA IZQUIERDA  CONTINUA DE COLOR AMARILLO DE 10 CM DE ANCHO PREVIAMENTE AUTORIZADO POR SUPERVISION CON PINTURA TERMOPLÁSTICA PARA TRAFICO MARCA SEMEX, Y SE LE APLICARA UN REFLEJANTE CON MICROESFERA, Y SU APLICACION SERA SEGUN LO INDICADO EN EL MANUAL DE DISPOSITIVOS PARA EL CONTROL DEL TRANSITO EN CALLES Y CARRETERAS, INCLUYE: LIMPIEZA POR ASPERSION PARA ELIMINAR LA PRESENCIA DE POLVO, GRASA, ACEITE Y CUALQUIER MATERIAL, MATERIALES, MANO DE OBRA, HERRAMIENTA Y EQUIPO NECESARIO. P.U.O.T. ","ML",1854.11,null,null,{"$f":"ROUND(D59*E59,2)","v":0}]
[42,"SUMINISTRO Y APLICACION DE PINTURA EN LA ORILLA DERECHA E IZQUIERDA  DISCONTINUA DE COLOR BLANCO DE 10 CM DE ANCHO PREVIAMENTE AUTORIZADO POR SUPERVISION CON PINTURA TERMOPLÁSTICA PARA TRAFICO MARCA SEMEX, Y SE LE APLICARA UN REFLEJANTE CON MICROESFERA, Y SU APLICACION SERA SEGUN LO INDICADO EN EL MANUAL DE DISPOSITIVOS PARA EL CONTROL DEL TRANSITO EN CALLES Y CARRETERAS, INCLUYE: LIMPIEZA POR ASPERSION PARA ELIMINAR LA PRESENCIA DE POLVO, GRASA, ACEITE Y CUALQUIER MATERIAL, MATERIALES, MANO DE OBRA, HERRAMIENTA Y EQUIPO NECESARIO. P.U.O.T. ","ML",521.09,null,null,{"$f":"ROUND(D60*E60,2)","v":0}]
[43,"SUMINISTRO Y APLICACION DE PINTURA DE RAYAS CANALIZADORAS, SE PINTARA UN ANCHO DE 20 CM DE COLOR BLANCO PREVIAMENTE AUTORIZADO POR SUPERVISION CON PINTURA TERMOPLÁSTICA PARA TRAFICOTRAFICO MARCA SEMEX, Y SE LE APLICARA UN REFLEJANTE CON MICROESFERA, Y SU APLICACION SERA SEGUN LO INDICADO EN EL MANUAL DE DISPOSITIVOS PARA EL CONTROL DEL TRANSITO EN CALLES Y CARRETERAS, INCLUYE: LIMPIEZA POR ASPERSION PARA ELIMINAR LA PRESENCIA DE POLVO, GRASA, ACEITE Y CUALQUIER MATERIAL, MATERIALES, MANO DE OBRA, HERRAMIENTA Y EQUIPO NECESARIO. P.U.O.T. ","ML",239.41,null,null,{"$f":"ROUND(D61*E61,2)","v":0}]
[44,"SUMINISTRO Y APLICACION DE PINTURA DE MARCAS M-7.1 RAYAS PARA CRUCE DE PEATONES EN VÍAS PRIMARIAS, CON PINTURA TERMOPLÁSTICA COLOR AMARILLO RETRORREFLEJANTE DE 40 CM DE ANCHO,  INCLUYE LIMPIEZA POR ASPERSION PARA ELIMINAR LA PRESENCIA DE POLVO, GRASA, ACEITE Y CUALQUIER MATERIAL, MATERIALES, MANO DE OBRA, HERRAMIENTA Y EQUIPO NECESARIO.","ML",372,null,null,{"$f":"ROUND(D62*E62,2)","v":0}]
[45,"SUMINISTRO Y APLICACION DE PINTURA DE MARCAS M-6 RAYA DE ALTO, CON PINTURA TERMOPLÁSTICA COLOR BLANCO RETRORREFLEJANTE DE 30 CM DE ANCHO,  INCLUYE LIMPIEZA POR ASPERSION PARA ELIMINAR LA PRESENCIA DE POLVO, GRASA, ACEITE Y CUALQUIER MATERIAL, MATERIALES, MANO DE OBRA, HERRAMIENTA Y EQUIPO NECESARIO.","ML",52.8,null,null,{"$f":"ROUND(D63*E63,2)","v":0}]
[46,"SUMINISTRO Y APLICACION DE PINTURA PARA FLECHAS, LETRAS, NUMEROS DE COLOR BLANCO PREVIAMENTE AUTORIZADO POR SUPERVISION CON PINTURA TERMOPLÁSTICA PARA TRAFICO MARCA SEMEX, Y SE LE APLICARA UN REFLEJANTE CON MICROESFERA, Y SU APLICACION SERA SEGUN LO INDICADO EN EL MANUAL DE DISPOSITIVOS PARA EL CONTROL DEL TRANSITO EN CALLES Y CARRETERAS, INCLUYE: LIMPIEZA POR ASPERSION PARA ELIMINAR LA PRESENCIA DE POLVO, GRASA, ACEITE Y CUALQUIER MATERIAL, MATERIALES, MANO DE OBRA, HERRAMIENTA Y EQUIPO NECESARIO. P.U.O.T. ","PZA",17,null,null,{"$f":"ROUND(D64*E64,2)","v":0}]
[47,"SUMINISTRO Y COLOCACION DE SEÑAL PREVENTIVA SP-21 ESTRECHAMIENTO ASIMÉTRICO, CON UN TABLERO DE 71 CM X 71 CM, EN UN POSTE, LAS IMPRESIONES DE LETRAS Y SIMBOLOS SERAN EN SCOTCHLITE REFLECTIVO GRADO INGENIERIA, AHOGADA EN CONCRETO F´c= 150 KG/CM2. LA PARTE POSTERIOR DE COLOR GRIS MATE, LA DISTANCIA Y ALTURA DE LA SEÑAL SERA LO INDICADO EN EL MANUAL DE DISPOSITIVO PARA EL CONTROL DEL TRANSITO EN CALLES Y CARRETERAS INCLUYE: MATERIALES, MANO DE OBRA Y HERRAMIENTA. P.U.O.T.","PZA",1,null,null,{"$f":"ROUND(D65*E65,2)","v":0}]
[48,"SUMINISTRO Y COLOCACION DE SEÑAL PREVENTIVA SP-26 VADO, CON UN TABLERO DE 71 CM X 71 CM, EN UN POSTE, LAS IMPRESIONES DE LETRAS Y SIMBOLOS SERAN EN SCOTCHLITE REFLECTIVO GRADO INGENIERIA, AHOGADA EN CONCRETO F´c= 150 KG/CM2. LA PARTE POSTERIOR DE COLOR GRIS MATE, LA DISTANCIA Y ALTURA DE LA SEÑAL SERA LO INDICADO EN EL MANUAL DE DISPOSITIVO PARA EL CONTROL DEL TRANSITO EN CALLES Y CARRETERAS INCLUYE: MATERIALES, MANO DE OBRA Y HERRAMIENTA. P.U.O.T.","PZA",4,null,null,{"$f":"ROUND(D66*E66,2)","v":0}]
[49,"SUMINISTRO Y COLOCACION DE SEÑAL PREVENTIVA SP-32 PEATONES, CON UN TABLERO DE 71 CM X 71 CM, EN UN POSTE, LAS IMPRESIONES DE LETRAS Y SIMBOLOS SERAN EN SCOTCHLITE REFLECTIVO GRADO INGENIERIA, AHOGADA EN CONCRETO F´c= 150 KG/CM2. LA PARTE POSTERIOR DE COLOR GRIS MATE, LA DISTANCIA Y ALTURA DE LA SEÑAL SERA LO INDICADO EN EL MANUAL DE DISPOSITIVO PARA EL CONTROL DEL TRANSITO EN CALLES Y CARRETERAS INCLUYE: MATERIALES, MANO DE OBRA Y HERRAMIENTA. P.U.O.T.","PZA",1,null,null,{"$f":"ROUND(D67*E67,2)","v":0}]
[50,"SUMINISTRO Y COLOCACION DE SEÑAL PREVENTIVA SP-41 REDUCTOR DE VELOCIDAD, CON UN TABLERO DE 71 CM X 71 CM, EN UN POSTE, LAS IMPRESIONES DE LETRAS Y SIMBOLOS SERAN EN SCOTCHLITE REFLECTIVO GRADO INGENIERIA, AHOGADA EN CONCRETO F´c= 150 KG/CM2. LA PARTE POSTERIOR DE COLOR GRIS MATE, LA DISTANCIA Y ALTURA DE LA SEÑAL SERA LO INDICADO EN EL MANUAL DE DISPOSITIVO PARA EL CONTROL DEL TRANSITO EN CALLES Y CARRETERAS INCLUYE: MATERIALES, MANO DE OBRA Y HERRAMIENTA. P.U.O.T.","PZA",4,null,null,{"$f":"ROUND(D68*E68,2)","v":0}]
[51,"SUMINISTRO Y COLOCACION DE SEÑAL RESTRICTIVA SR-7 CEDA EL PASO, CON UN TABLERO DE 85 CM POR LADO, EN UN POSTE, LAS IMPRESIONES DE LETRAS Y SIMBOLOS SERAN EN SCOTCHLITE REFLECTIVO GRADO INGENIERIA, AHOGADA EN CONCRETO F´c= 150 KG/CM2. LA PARTE POSTERIOR DE COLOR GRIS MATE, LA DISTANCIA Y ALTURA DE LA SEÑAL SERA LO INDICADO EN EL MANUAL DE DISPOSITIVO PARA EL CONTROL DEL TRANSITO EN CALLES Y CARRETERAS INCLUYE: MATERIALES, MANO DE OBRA Y HERRAMIENTA. P.U.O.T.","PZA",1,null,null,{"$f":"ROUND(D69*E69,2)","v":0}]
[52,"SUMINISTRO Y COLOCACION DE SEÑAL RESTRICTIVA SR-9 VELOCIDAD, CON UN TABLERO DE 71 CM X 71 CM, EN UN POSTE, LAS IMPRESIONES DE LETRAS Y SIMBOLOS SERAN EN SCOTCHLITE REFLECTIVO GRADO INGENIERIA, AHOGADA EN CONCRETO F´c= 150 KG/CM2. LA PARTE POSTERIOR DE COLOR GRIS MATE, LA DISTANCIA Y ALTURA DE LA SEÑAL SERA LO INDICADO EN EL MANUAL DE DISPOSITIVO PARA EL CONTROL DEL TRANSITO EN CALLES Y CARRETERAS INCLUYE: MATERIALES, MANO DE OBRA Y HERRAMIENTA. P.U.O.T.","PZA",6,null,null,{"$f":"ROUND(D70*E70,2)","v":0}]
[53,"SUMINISTRO Y COLOCACION DE SEÑAL RESTRICTIVA SR-6 ALTO, CON UN TABLERO DE 30 CM POR LADO, EN UN POSTE, LAS IMPRESIONES DE LETRAS Y SIMBOLOS SERAN EN SCOTCHLITE REFLECTIVO GRADO INGENIERIA, AHOGADA EN CONCRETO F´c= 150 KG/CM2. LA PARTE POSTERIOR DE COLOR GRIS MATE, LA DISTANCIA Y ALTURA DE LA SEÑAL SERA LO INDICADO EN EL MANUAL DE DISPOSITIVO PARA EL CONTROL DEL TRANSITO EN CALLES Y CARRETERAS INCLUYE: MATERIALES, MANO DE OBRA Y HERRAMIENTA. P.U.O.T.","PZA",5,null,null,{"$f":"ROUND(D71*E71,2)","v":0}]
[54,"SUMINISTRO Y COLOCACION DE SEÑAL RESTRICTIVA SR-22 PROHIBIDO ESTACIONARSE, CON UN TABLERO DE 30 CM POR LADO, EN UN POSTE, LAS IMPRESIONES DE LETRAS Y SIMBOLOS SERAN EN SCOTCHLITE REFLECTIVO GRADO INGENIERIA, AHOGADA EN CONCRETO F´c= 150 KG/CM2. LA PARTE POSTERIOR DE COLOR GRIS MATE, LA DISTANCIA Y ALTURA DE LA SEÑAL SERA LO INDICADO EN EL MANUAL DE DISPOSITIVO PARA EL CONTROL DEL TRANSITO EN CALLES Y CARRETERAS INCLUYE: MATERIALES, MANO DE OBRA Y HERRAMIENTA. P.U.O.T.","PZA",2,null,null,{"$f":"ROUND(D72*E72,2)","v":0}]
[55,"SUMINISTRO Y COLOCACION DE REDUCTOR DE VELOCIDAD A BASE DE CARPETA ASFÁLTICA EN CALIENTE, CONFORME A PROYECTO, INCLUYE CONCRETO ASFÁLTICO Y FRANJAS DIAGONALES DE COLOR BLANCO Y AMARILLO RETRORREFLEJANTE, POR UNIDAD DE OBRA TERMINADA.","M",26.4,null,null,{"$f":"ROUND(D73*E73,2)","v":0}]
[56,"SUMINISTRO Y COLOCACIÓN DE VIALETA COLOR BLANCO CON RETROREFLEJANTE EN UNA CARA, SU COLOCACIÓN SERA SEGUN LO INDICADO EN EL MANUAL DE SEÑALIZACIÓN VIAL Y DISPOSITIVOS PARA PROTECCIÓN, INCLUYE: LIMPIEZA POR ASPERSION PARA ELIMINAR LA PRESENCIA DE POLVO, GRASA, ACEITE Y CUALQUIER MATERIAL, MATERIALES, MANO DE OBRA, HERRAMIENTA Y EQUIPO NECESARIO. P.U.O.T. ","PZA",352,null,null,{"$f":"ROUND(D74*E74,2)","v":0}]
[57,"SUMINISTRO Y COLOCACIÓN DE BOYA COLOR AMARILLO CON RETROREFLEJANTE DOBLE CARA, SU COLOCACIÓN SERA SEGUN LO INDICADO EN EL MANUAL DE SEÑALIZACIÓN VIAL Y DISPOSITIVOS PARA PROTECCIÓN, INCLUYE: LIMPIEZA POR ASPERSION PARA ELIMINAR LA PRESENCIA DE POLVO, GRASA, ACEITE Y CUALQUIER MATERIAL, MATERIALES, MANO DE OBRA, HERRAMIENTA Y EQUIPO NECESARIO. P.U.O.T. ","PZA",1330,null,null,{"$f":"ROUND(D75*E75,2)","v":0}]
[null,"TOTAL : ",null,null,null,null,{"$f":"SUM(G13:G75)","v":0}]